[Event "Early-Titled-Tuesday-Blitz-January-23-2024"]
[Site "Chess.com"]
[Date "2024.01.23"]
[Round "4"]
[White "Goryachkina"]
[Black "Zhigalko_Sergei"]
[Result "0-1"]
[WhiteElo "2697"]
[BlackElo "2979"]
[TimeControl "180+1"]
[EndTime "8:40:16 PST"]
[Termination "Zhigalko_Sergei won on time"]

1. e4 {[%clk 0:02:59.8]} 1... c5 {[%clk 0:03:00.3]} 2. Nf3 {[%clk 0:03:00.1]}
2... Nc6 {[%clk 0:03:01]} 3. Bb5 {[%clk 0:03:00.2]} 3... Nf6 {[%clk 0:03:01.4]}
4. Bxc6 {[%clk 0:02:59.6]} 4... dxc6 {[%clk 0:03:02.3]} 5. d3 {[%clk 0:02:59]}
5... Bg4 {[%clk 0:03:02.7]} 6. h3 {[%clk 0:02:57.2]} 6... Bh5 {[%clk 0:03:03.1]}
7. Nbd2 {[%clk 0:02:53.5]} 7... Qc7 {[%clk 0:03:03.2]} 8. O-O {[%clk 0:02:49.2]}
8... Nd7 {[%clk 0:03:00.6]} 9. b3 {[%clk 0:02:34.6]} 9... e5 {[%clk 0:02:58.7]}
10. Bb2 {[%clk 0:02:33.4]} 10... f6 {[%clk 0:02:56.9]} 11. Qe1 {[%clk 0:02:31]}
11... Be7 {[%clk 0:02:56.6]} 12. Nh4 {[%clk 0:02:26.4]} 12... Nf8 {[%clk
0:02:56.3]} 13. Nf5 {[%clk 0:02:24.2]} 13... Ne6 {[%clk 0:02:56.3]} 14. Nxe7
{[%clk 0:02:09.2]} 14... Qxe7 {[%clk 0:02:55.8]} 15. Qe3 {[%clk 0:02:04.2]}
15... O-O {[%clk 0:02:49.4]} 16. Kh2 {[%clk 0:01:48.4]} 16... Rad8 {[%clk
0:02:34.1]} 17. a4 {[%clk 0:01:30.2]} 17... b6 {[%clk 0:02:21]} 18. Nc4 {[%clk
0:01:29.9]} 18... Rd7 {[%clk 0:01:53]} 19. Qg3 {[%clk 0:01:26.8]} 19... Kh8
{[%clk 0:01:31.6]} 20. f3 {[%clk 0:01:25.8]} 20... Bf7 {[%clk 0:01:22.1]} 21.
Rf2 {[%clk 0:01:21.4]} 21... Rg8 {[%clk 0:01:16.8]} 22. Ne3 {[%clk 0:01:14.3]}
22... Qd8 {[%clk 0:01:04.8]} 23. Rff1 {[%clk 0:01:05.5]} 23... Nf4 {[%clk
0:01:01.2]} 24. Qf2 {[%clk 0:00:58.6]} 24... Be6 {[%clk 0:00:58.5]} 25. Rad1
{[%clk 0:00:53.6]} 25... Qe8 {[%clk 0:00:56.1]} 26. Qh4 {[%clk 0:00:38.8]} 26...
g5 {[%clk 0:00:49.5]} 27. Qg3 {[%clk 0:00:36.8]} 27... Qh5 {[%clk 0:00:48.3]}
28. Ng4 {[%clk 0:00:26.6]} 28... Rg6 {[%clk 0:00:41.3]} 29. Nxf6 {[%clk
0:00:12.1]} 29... Rxf6 {[%clk 0:00:42.2]} 30. Bxe5 {[%clk 0:00:12.4]} 30... Kg7
{[%clk 0:00:32.5]} 31. d4 {[%clk 0:00:08.2]} 31... cxd4 {[%clk 0:00:18.9]} 32.
Rxd4 {[%clk 0:00:08.4]} 32... Rf7 {[%clk 0:00:19.4]} 33. Rd6 {[%clk 0:00:06.9]}
33... Qg6 {[%clk 0:00:10.2]} 34. Rfd1 {[%clk 0:00:05.8]} 34... c5 {[%clk
0:00:06.3]} 35. Bb2 {[%clk 0:00:05.6]} 35... Kh6 {[%clk 0:00:06.2]} 36. Rc6
{[%clk 0:00:04]} 36... Nh5 {[%clk 0:00:06.1]} 37. Qe1 {[%clk 0:00:03.5]} 37...
Rxf3 {[%clk 0:00:03.6]} 38. gxf3 {[%clk 0:00:03.4]} 38... Rxf3 {[%clk
0:00:04.5]} 39. Rdd6 {[%clk 0:00:03.2]} 39... Rxh3+ {[%clk 0:00:03.6]} 40. Kg1
{[%clk 0:00:03.7]} 40... Nf4 {[%clk 0:00:03.9]} 41. Rxe6 {[%clk 0:00:03.5]}
41... Nxe6 {[%clk 0:00:04]} 42. Qe2 {[%clk 0:00:03.5]} 42... Rh4 {[%clk
0:00:03.8]} 43. Qc4 {[%clk 0:00:03.4]} 43... Rxe4 {[%clk 0:00:04.3]} 44. Qd3
{[%clk 0:00:02.3]} 44... Rg4+ {[%clk 0:00:03.6]} 45. Kf1 {[%clk 0:00:02.6]}
45... Rf4+ {[%clk 0:00:03.7]} 46. Kg1 {[%clk 0:00:02.2]} 46... Rg4+ {[%clk
0:00:03.6]} 47. Kf1 {[%clk 0:00:02.2]} 47... Re4 {[%clk 0:00:03.7]} 48. Qh3+
{[%clk 0:00:01.7]} 48... Rh4 {[%clk 0:00:04]} 49. Qd3 {[%clk 0:00:01.9]} 49...
Rf4+ {[%clk 0:00:04.4]} 50. Kg1 {[%clk 0:00:02]} 50... Qe4 {[%clk 0:00:02.4]}
51. Qxe4 {[%clk 0:00:01.9]} 51... Rxe4 {[%clk 0:00:02.6]} 52. a5 {[%clk
0:00:02]} 52... bxa5 {[%clk 0:00:02.1]} 53. Ra6 {[%clk 0:00:02.4]} 53... Kh5
{[%clk 0:00:02.3]} 54. Rxa5 {[%clk 0:00:02.7]} 54... Re2 {[%clk 0:00:02.1]} 55.
Bf6 {[%clk 0:00:02.3]} 55... Rxc2 {[%clk 0:00:01.7]} 56. Rxa7 {[%clk 0:00:02.7]}
56... h6 {[%clk 0:00:02.1]} 57. Re7 {[%clk 0:00:02.7]} 57... Nf4 {[%clk
0:00:02.4]} 58. Re8 {[%clk 0:00:02.8]} 58... Kg6 {[%clk 0:00:02.4]} 59. Be5
{[%clk 0:00:02.4]} 59... Nd3 {[%clk 0:00:02.7]} 60. Bd6 {[%clk 0:00:02.5]} 60...
Rc3 {[%clk 0:00:03.5]} 61. Rg8+ {[%clk 0:00:02.5]} 61... Kf7 {[%clk 0:00:03.5]}
62. Rh8 {[%clk 0:00:03]} 62... Kg7 {[%clk 0:00:03.5]} 63. Rb8 {[%clk 0:00:03.3]}
63... Kg6 {[%clk 0:00:03.2]} 64. Rg8+ {[%clk 0:00:02.7]} 64... Kh5 {[%clk
0:00:03.2]} 65. Rb8 {[%clk 0:00:02.8]} 65... Rc2 {[%clk 0:00:03.3]} 66. Bf8
{[%clk 0:00:02.5]} 66... Kg4 {[%clk 0:00:02.9]} 67. Bxh6 {[%clk 0:00:02.2]}
67... Nf4 {[%clk 0:00:03.4]} 68. Bf8 {[%clk 0:00:01.6]} 68... Ne6 {[%clk
0:00:03.5]} 69. Bd6 {[%clk 0:00:01.6]} 69... Nd4 {[%clk 0:00:03.9]} 70. Rc8
{[%clk 0:00:01.4]} 70... Nf3+ {[%clk 0:00:03.2]} 71. Kf1 {[%clk 0:00:01.5]}
71... Nd2+ {[%clk 0:00:03.8]} 72. Ke1 {[%clk 0:00:01.3]} 72... Nxb3 {[%clk
0:00:04.7]} 0-1

[Event "Early-Titled-Tuesday-Blitz-January-23-2024"]
[Site "Chess.com"]
[Date "2024.01.23"]
[Round "4"]
[White "Martial2008"]
[Black "Practical-Play"]
[Result "0-1"]
[WhiteElo "2661"]
[BlackElo "2503"]
[TimeControl "180+1"]
[EndTime "8:40:40 PST"]
[Termination "Practical-Play won on time"]

1. d4 {[%clk 0:03:00.9]} 1... d5 {[%clk 0:02:58.1]} 2. Nf3 {[%clk 0:03:01.8]}
2... Nf6 {[%clk 0:02:57.4]} 3. Bf4 {[%clk 0:03:01.7]} 3... c5 {[%clk 0:02:51.6]}
4. e3 {[%clk 0:03:02.2]} 4... Bf5 {[%clk 0:02:50.6]} 5. Nbd2 {[%clk 0:03:01.5]}
5... e6 {[%clk 0:02:50.7]} 6. Bb5+ {[%clk 0:02:57.8]} 6... Nbd7 {[%clk
0:02:49.6]} 7. c3 {[%clk 0:02:51.1]} 7... a6 {[%clk 0:02:49.5]} 8. Ba4 {[%clk
0:02:51.2]} 8... Be7 {[%clk 0:02:44.5]} 9. Ne5 {[%clk 0:02:50.3]} 9... O-O
{[%clk 0:02:44.2]} 10. Bc2 {[%clk 0:02:40.7]} 10... Bxc2 {[%clk 0:02:41.4]} 11.
Qxc2 {[%clk 0:02:41.6]} 11... Nh5 {[%clk 0:02:41.2]} 12. Nxd7 {[%clk 0:02:39.5]}
12... Qxd7 {[%clk 0:02:40.5]} 13. Nf3 {[%clk 0:02:39.9]} 13... cxd4 {[%clk
0:02:28.6]} 14. cxd4 {[%clk 0:02:32.9]} 14... Bb4+ {[%clk 0:02:23.9]} 15. Ke2
{[%clk 0:02:32.8]} 15... Rac8 {[%clk 0:02:20.2]} 16. Qd3 {[%clk 0:02:29.5]}
16... Nxf4+ {[%clk 0:01:55.7]} 17. exf4 {[%clk 0:02:30.4]} 17... Qc7 {[%clk
0:01:56]} 18. g3 {[%clk 0:02:05.4]} 18... Qc2+ {[%clk 0:01:54]} 19. Qxc2 {[%clk
0:02:05.4]} 19... Rxc2+ {[%clk 0:01:53.7]} 20. Ke3 {[%clk 0:02:06.3]} 20... Rxb2
{[%clk 0:01:48.4]} 21. Rhb1 {[%clk 0:02:04.1]} 21... Rxb1 {[%clk 0:01:38.9]} 22.
Rxb1 {[%clk 0:02:04]} 22... a5 {[%clk 0:01:39.4]} 23. Ne5 {[%clk 0:02:03.3]}
23... Rc8 {[%clk 0:01:36.2]} 24. Nd3 {[%clk 0:01:58.5]} 24... Rc4 {[%clk
0:01:27.6]} 25. Nxb4 {[%clk 0:01:53.1]} 25... axb4 {[%clk 0:01:22.7]} 26. Kd3
{[%clk 0:01:41.3]} 26... Kf8 {[%clk 0:01:17.2]} 27. Rb3 {[%clk 0:01:37.9]} 27...
b5 {[%clk 0:01:05.2]} 28. Rb1 {[%clk 0:01:26.2]} 28... Ke7 {[%clk 0:01:01.6]}
29. Rb3 {[%clk 0:01:20.3]} 29... Kd6 {[%clk 0:00:59.3]} 30. a3 {[%clk
0:01:20.3]} 30... bxa3 {[%clk 0:00:50.9]} 31. Rxa3 {[%clk 0:01:17.2]} 31... b4
{[%clk 0:00:36.8]} 32. Ra6+ {[%clk 0:01:12.7]} 32... Rc6 {[%clk 0:00:36.2]} 33.
Ra7 {[%clk 0:01:12.7]} 33... Rc3+ {[%clk 0:00:31]} 34. Kd2 {[%clk 0:01:12.2]}
34... Rc7 {[%clk 0:00:31.7]} 35. Ra6+ {[%clk 0:01:10.5]} 35... Rc6 {[%clk
0:00:25.9]} 36. Ra7 {[%clk 0:01:10.6]} 36... Rc7 {[%clk 0:00:20]} 37. Ra6+
{[%clk 0:01:05.5]} 37... Kd7 {[%clk 0:00:15.6]} 38. Rb6 {[%clk 0:01:04.7]} 38...
Rc4 {[%clk 0:00:15.9]} 39. Kd3 {[%clk 0:01:03.6]} 39... Kc7 {[%clk 0:00:15.6]}
40. Rb5 {[%clk 0:01:03.4]} 40... h5 {[%clk 0:00:10]} 41. h4 {[%clk 0:01:01.4]}
41... g6 {[%clk 0:00:07.5]} 42. Ra5 {[%clk 0:00:53.8]} 42... b3 {[%clk
0:00:03.4]} 43. Rb5 {[%clk 0:00:53]} 43... Rc1 {[%clk 0:00:02]} 44. Rxb3 {[%clk
0:00:52.8]} 44... Rd1+ {[%clk 0:00:02.5]} 45. Ke3 {[%clk 0:00:51.2]} 45... Re1+
{[%clk 0:00:02.6]} 46. Kd2 {[%clk 0:00:51.2]} 46... Ra1 {[%clk 0:00:02.4]} 47.
Rc3+ {[%clk 0:00:50.3]} 47... Kd7 {[%clk 0:00:02.5]} 48. Rb3 {[%clk 0:00:50.8]}
48... Ra2+ {[%clk 0:00:02.4]} 49. Ke3 {[%clk 0:00:50.9]} 49... Ke7 {[%clk
0:00:02.9]} 50. Rb7+ {[%clk 0:00:49.4]} 50... Kf6 {[%clk 0:00:03]} 51. Rb4
{[%clk 0:00:49.1]} 51... Ra3+ {[%clk 0:00:03.2]} 52. Ke2 {[%clk 0:00:49.5]}
52... Ra2+ {[%clk 0:00:03.6]} 53. Kf3 {[%clk 0:00:50.2]} 53... Ra3+ {[%clk
0:00:03.8]} 54. Kg2 {[%clk 0:00:49.1]} 54... Ra2 {[%clk 0:00:04.2]} 55. Rb3
{[%clk 0:00:45]} 55... Rd2 {[%clk 0:00:03.8]} 56. Rb4 {[%clk 0:00:44.9]} 56...
Rc2 {[%clk 0:00:04.2]} 57. Kf3 {[%clk 0:00:43.6]} 57... Ra2 {[%clk 0:00:03.6]}
58. Rb3 {[%clk 0:00:40.3]} 58... Rd2 {[%clk 0:00:03]} 59. Ke3 {[%clk 0:00:40.4]}
59... Ra2 {[%clk 0:00:03.6]} 60. Rc3 {[%clk 0:00:28.6]} 60... Rb2 {[%clk
0:00:03.6]} 61. Rc7 {[%clk 0:00:26.3]} 61... Rb3+ {[%clk 0:00:03.6]} 62. Kd2
{[%clk 0:00:26.5]} 62... Rb4 {[%clk 0:00:04]} 63. Kc3 {[%clk 0:00:24.1]} 63...
Rb1 {[%clk 0:00:04.2]} 64. Kd3 {[%clk 0:00:22.8]} 64... Rf1 {[%clk 0:00:03.6]}
65. Ke2 {[%clk 0:00:22.5]} 65... Ra1 {[%clk 0:00:03.6]} 66. f5 {[%clk
0:00:21.4]} 66... gxf5 {[%clk 0:00:01.8]} 67. Kf3 {[%clk 0:00:19.2]} 67... Ra4
{[%clk 0:00:01.7]} 68. Ke3 {[%clk 0:00:19.3]} 68... Ra3+ {[%clk 0:00:02.4]} 69.
Ke2 {[%clk 0:00:16.5]} 69... Ra4 {[%clk 0:00:03.3]} 70. Ke3 {[%clk 0:00:16.3]}
70... Ra2 {[%clk 0:00:03.8]} 71. Rc8 {[%clk 0:00:16]} 71... Ra1 {[%clk
0:00:04.3]} 72. Rh8 {[%clk 0:00:15.8]} 72... Kg6 {[%clk 0:00:05]} 73. Rg8+
{[%clk 0:00:15.8]} 73... Kf6 {[%clk 0:00:05.5]} 74. Rg5 {[%clk 0:00:16.2]} 74...
Ra3+ {[%clk 0:00:05.5]} 75. Ke2 {[%clk 0:00:16.4]} 75... Ra4 {[%clk 0:00:05.9]}
76. Ke3 {[%clk 0:00:15.9]} 76... Ra3+ {[%clk 0:00:06.4]} 77. Kf4 {[%clk
0:00:11.7]} 77... Ra4 {[%clk 0:00:06.4]} 78. Rxh5 {[%clk 0:00:11.7]} 78... Rxd4+
{[%clk 0:00:06.1]} 79. Kf3 {[%clk 0:00:12.4]} 79... Ra4 {[%clk 0:00:05.3]} 80.
Rh8 {[%clk 0:00:11.4]} 80... d4 {[%clk 0:00:05]} 81. Rd8 {[%clk 0:00:11.3]}
81... e5 {[%clk 0:00:05.3]} 82. h5 {[%clk 0:00:11.3]} 82... d3 {[%clk
0:00:05.4]} 83. Ke3 {[%clk 0:00:09.8]} 83... e4 {[%clk 0:00:05.8]} 84. h6 {[%clk
0:00:07.6]} 84... Kg6 {[%clk 0:00:04.2]} 85. Rd6+ {[%clk 0:00:07.8]} 85... Kh7
{[%clk 0:00:04.1]} 86. Rf6 {[%clk 0:00:08.5]} 86... Ra2 {[%clk 0:00:03.2]} 87.
Rxf7+ {[%clk 0:00:04.2]} 87... Kxh6 {[%clk 0:00:03.4]} 88. Rxf5 {[%clk 0:00:05]}
88... Re2+ {[%clk 0:00:03]} 89. Kd4 {[%clk 0:00:02.2]} 89... d2 {[%clk
0:00:03.4]} 90. Rf6+ {[%clk 0:00:02.7]} 90... Kg7 {[%clk 0:00:02.8]} 0-1

[Event "Early-Titled-Tuesday-Blitz-January-23-2024"]
[Site "Chess.com"]
[Date "2024.01.23"]
[Round "4"]
[White "ilya2700"]
[Black "chess123456s"]
[Result "0-1"]
[WhiteElo "2344"]
[BlackElo "2549"]
[TimeControl "180+1"]
[EndTime "8:40:49 PST"]
[Termination "chess123456s won by resignation"]

1. d4 {[%clk 0:03:00]} 1... Nf6 {[%clk 0:02:59.4]} 2. c4 {[%clk 0:02:59.5]} 2...
g6 {[%clk 0:02:59.1]} 3. Nc3 {[%clk 0:02:59.4]} 3... Bg7 {[%clk 0:02:59.4]} 4.
e4 {[%clk 0:02:59.7]} 4... d6 {[%clk 0:02:59.9]} 5. f4 {[%clk 0:03:00]} 5... O-O
{[%clk 0:02:58.4]} 6. Nf3 {[%clk 0:03:00.3]} 6... c5 {[%clk 0:02:58.8]} 7. d5
{[%clk 0:03:00.3]} 7... e6 {[%clk 0:02:57.3]} 8. Be2 {[%clk 0:03:00.4]} 8...
exd5 {[%clk 0:02:57.7]} 9. cxd5 {[%clk 0:03:01.3]} 9... Re8 {[%clk 0:02:58.4]}
10. Nd2 {[%clk 0:03:01.6]} 10... a6 {[%clk 0:02:55]} 11. a4 {[%clk 0:03:01.3]}
11... h5 {[%clk 0:02:49.7]} 12. h3 {[%clk 0:03:00.8]} 12... Nbd7 {[%clk
0:02:13]} 13. O-O {[%clk 0:02:59.8]} 13... Nf8 {[%clk 0:02:12.1]} 14. a5 {[%clk
0:02:54.8]} 14... N8d7 {[%clk 0:02:08.5]} 15. Bf3 {[%clk 0:02:49]} 15... b5
{[%clk 0:02:08.2]} 16. axb6 {[%clk 0:02:48.6]} 16... Nxb6 {[%clk 0:02:08.9]} 17.
Re1 {[%clk 0:02:46.9]} 17... Bb7 {[%clk 0:02:08.1]} 18. g4 {[%clk 0:02:30.8]}
18... hxg4 {[%clk 0:02:03.5]} 19. hxg4 {[%clk 0:02:31.7]} 19... Qe7 {[%clk
0:01:57.5]} 20. Rf1 {[%clk 0:02:23.5]} 20... Nfd7 {[%clk 0:01:53.9]} 21. Kg2
{[%clk 0:02:16.5]} 21... c4 {[%clk 0:01:45.4]} 22. Qe2 {[%clk 0:02:07.2]} 22...
Nc5 {[%clk 0:01:29]} 23. Qf2 {[%clk 0:01:36.1]} 23... Rac8 {[%clk 0:01:16.9]}
24. Rh1 {[%clk 0:01:25.9]} 24... Nbd7 {[%clk 0:01:16.4]} 25. g5 {[%clk
0:01:21.7]} 25... Nd3 {[%clk 0:01:13.9]} 26. Qh4 {[%clk 0:01:19.6]} 26... N7c5
{[%clk 0:01:09.1]} 27. Nf1 {[%clk 0:00:25.6]} 27... Nb3 {[%clk 0:00:58.5]} 28.
Rb1 {[%clk 0:00:22.5]} 28... Nbxc1 {[%clk 0:00:56.1]} 29. Ng3 {[%clk 0:00:21.6]}
29... Nb3 {[%clk 0:00:50.5]} 30. f5 {[%clk 0:00:20.5]} 30... Qe5 {[%clk
0:00:38.9]} 31. f6 {[%clk 0:00:18.6]} 31... Nf4+ {[%clk 0:00:38.5]} 32. Kf1
{[%clk 0:00:18.2]} 32... Nd2+ {[%clk 0:00:35.1]} 33. Kf2 {[%clk 0:00:16]} 33...
Qd4+ {[%clk 0:00:34.5]} 34. Ke1 {[%clk 0:00:15.6]} 34... Nxf3+ {[%clk
0:00:34.4]} 35. Kf1 {[%clk 0:00:15.8]} 35... Nxh4 {[%clk 0:00:28]} 36. Rxh4
{[%clk 0:00:15.8]} 36... Qd3+ {[%clk 0:00:28.3]} 37. Kf2 {[%clk 0:00:15.7]}
37... Qd2+ {[%clk 0:00:17.5]} 38. Kf3 {[%clk 0:00:15.6]} 38... Nd3 {[%clk
0:00:17.1]} 39. fxg7 {[%clk 0:00:12.4]} 39... Qf2+ {[%clk 0:00:17.2]} 40. Kg4
{[%clk 0:00:12.3]} 40... Qf4+ {[%clk 0:00:17.8]} 41. Kh3 {[%clk 0:00:12.2]}
41... Qxg5 {[%clk 0:00:18.5]} 42. Rh1 {[%clk 0:00:12.4]} 42... Nf4+ {[%clk
0:00:17.4]} 43. Rxf4 {[%clk 0:00:10.3]} 43... Qxf4 {[%clk 0:00:18.3]} 44. Rg1
{[%clk 0:00:11.2]} 44... Kxg7 {[%clk 0:00:18.6]} 45. Nh5+ {[%clk 0:00:11.6]}
45... Kh6 {[%clk 0:00:18.3]} 46. Nxf4 {[%clk 0:00:12.5]} 46... Re5 {[%clk
0:00:18.1]} 47. Rg4 {[%clk 0:00:08.5]} 47... Rce8 {[%clk 0:00:18]} 48. Rh4+
{[%clk 0:00:08.7]} 48... Kg7 {[%clk 0:00:18]} 49. Nfe2 {[%clk 0:00:06.7]} 49...
Bc8+ {[%clk 0:00:18.2]} 50. Kg3 {[%clk 0:00:06.4]} 50... Rh8 {[%clk 0:00:18.2]}
51. Rf4 {[%clk 0:00:06.2]} 51... Rh1 {[%clk 0:00:17.7]} 52. Nd4 {[%clk
0:00:05.9]} 52... Rg1+ {[%clk 0:00:16.2]} 53. Kf2 {[%clk 0:00:06]} 53... Rgg5
{[%clk 0:00:15.8]} 54. Nc6 {[%clk 0:00:06.4]} 54... Bd7 {[%clk 0:00:14.3]} 55.
Nxe5 {[%clk 0:00:06.5]} 55... Rxe5 {[%clk 0:00:15.2]} 56. Rf3 {[%clk 0:00:06.9]}
56... f5 {[%clk 0:00:15.3]} 57. exf5 {[%clk 0:00:06.5]} 57... Rxf5 {[%clk
0:00:16.2]} 58. Rxf5 {[%clk 0:00:06.4]} 58... Bxf5 {[%clk 0:00:17.1]} 59. Ke3
{[%clk 0:00:07.3]} 59... Kf6 {[%clk 0:00:17.6]} 60. Kd4 {[%clk 0:00:08.2]} 60...
Bd3 {[%clk 0:00:17.5]} 61. b3 {[%clk 0:00:05.8]} 61... cxb3 {[%clk 0:00:15.5]}
62. Kxd3 {[%clk 0:00:06.1]} 62... Ke5 {[%clk 0:00:16.4]} 63. Kc4 {[%clk
0:00:05.1]} 63... g5 {[%clk 0:00:16.8]} 64. Kxb3 {[%clk 0:00:05.3]} 64... g4
{[%clk 0:00:17.6]} 65. Ne2 {[%clk 0:00:04.8]} 65... Kxd5 {[%clk 0:00:17.4]} 66.
Kc2 {[%clk 0:00:05.1]} 66... Ke4 {[%clk 0:00:17.5]} 67. Kd2 {[%clk 0:00:05.6]}
67... a5 {[%clk 0:00:17.5]} 68. Nc3+ {[%clk 0:00:05.3]} 68... Kf3 {[%clk
0:00:17.5]} 69. Ke1 {[%clk 0:00:05.7]} 69... g3 {[%clk 0:00:17.5]} 70. Kf1
{[%clk 0:00:05.8]} 70... Ke3 {[%clk 0:00:17.2]} 71. Kg2 {[%clk 0:00:05.5]} 71...
Kd3 {[%clk 0:00:17.8]} 72. Nb5 {[%clk 0:00:05]} 72... d5 {[%clk 0:00:17.5]} 73.
Kxg3 {[%clk 0:00:05.1]} 73... Kc4 {[%clk 0:00:18.2]} 74. Nd6+ {[%clk 0:00:04.8]}
74... Kb4 {[%clk 0:00:17.9]} 75. Kf3 {[%clk 0:00:04]} 75... a4 {[%clk
0:00:18.2]} 76. Nf5 {[%clk 0:00:04.6]} 76... a3 {[%clk 0:00:18.7]} 77. Nd4
{[%clk 0:00:05.2]} 77... a2 {[%clk 0:00:16.8]} 78. Nc2+ {[%clk 0:00:05.3]} 78...
Kc3 {[%clk 0:00:16.8]} 79. Ne3 {[%clk 0:00:02.7]} 79... a1=Q {[%clk 0:00:16.6]}
80. Nxd5+ {[%clk 0:00:03.2]} 80... Kd4 {[%clk 0:00:17.1]} 81. Nf4 {[%clk
0:00:04.1]} 81... Qf1+ {[%clk 0:00:17]} 82. Kg3 {[%clk 0:00:04.2]} 82... Ke4
{[%clk 0:00:17.1]} 83. Ng2 {[%clk 0:00:04.7]} 83... Qf3+ {[%clk 0:00:16.9]} 84.
Kh2 {[%clk 0:00:05.2]} 84... Qg4 {[%clk 0:00:16.3]} 85. Ne1 {[%clk 0:00:03.2]}
85... Qh4+ {[%clk 0:00:14.9]} 86. Kg2 {[%clk 0:00:03.3]} 86... Qxe1 {[%clk
0:00:15.8]} 87. Kh2 {[%clk 0:00:03.2]} 87... Qf2+ {[%clk 0:00:15.3]} 0-1